fUST/lending_fUST_20240906
["ID","MTS","AMOUNT","RATE_DAILY","PERIOD"]
[337306226,1725591042904,-240.44813289,0.00020785,2]
[337306227,1725591042913,-500.0,0.00020785,2]
[337306228,1725591042923,-505.02399706,0.00020785,2]
[337306229,1725591042934,-500.0,0.00020785,2]
[337306230,1725591042945,-501.47659693,0.00020785,2]
[337306231,1725591042955,-511.72174572,0.00020785,2]
[337306232,1725591042965,-500.0,0.00020785,2]
[337306233,1725591042975,-500.0,0.00020785,2]
[337306234,1725591042986,-500.0,0.00020785,2]
[337306235,1725591042997,-501.66674333,0.00020785,2]
[337306236,1725591043009,-503.09023927,0.00020785,2]
[337306237,1725591043020,-500.0,0.00020785,2]
[337306238,1725591043030,-509.89063328,0.00020785,2]
[337306239,1725591043043,-505.78202309,0.00020785,2]
[337306240,1725591043053,-509.84721723,0.00020785,2]
[337306241,1725591043064,-504.707729,0.00020785,2]
[337306242,1725591043073,-500.0,0.00020785,2]
[337306243,1725591043083,-506.0679091,0.00020785,2]
[337306244,1725591043093,-502.54911718,0.00020785,2]
[337306245,1725591043102,-632.15734337,0.00020785,2]
[337306246,1725591043112,-515.36735278,0.00020785,2]
[337306247,1725591043122,-510.79392307,0.00020785,2]
[337306248,1725591043132,-500.92662039,0.00020785,2]
[337306249,1725591043142,-500.0,0.00020785,2]
[337306250,1725591043152,-532.96303315,0.00020785,2]
[337306251,1725591043162,-157.79768832,0.00020785,2]
[337306252,1725591043172,-508.70548985,0.00020785,2]
[337306253,1725591043182,-579.56144968,0.00020785,2]
[337306254,1725591043191,-507.76099309,0.00020785,2]
[337306255,1725591043201,-508.83262295,0.00020785,2]
[337306256,1725591043210,-500.0,0.00020785,2]
[337306257,1725591043220,-500.0,0.00020785,2]
[337306258,1725591043229,-500.0,0.00020785,2]
[337306259,1725591043239,-500.0,0.00020785,2]
[337306260,1725591043248,-500.0,0.00020785,2]
[337306261,1725591043258,-500.0,0.00020785,2]
[337306262,1725591043267,-500.0,0.00020785,2]
[337306263,1725591043277,-500.0,0.00020785,2]
[337306264,1725591043287,-500.0,0.00020785,2]
[337306265,1725591043297,-500.0,0.00020785,2]
[337306266,1725591043307,-503.14813987,0.00020785,2]
[337306267,1725591043316,-642.08465296,0.00020785,2]
[337306268,1725591043327,-253.37135479,0.00020785,2]
[337306269,1725591043336,-464.54135223,0.00020785,2]
[337306270,1725591043346,-500.0,0.00020785,2]
[337306271,1725591043355,-507.47667904,0.00020785,2]
[337306272,1725591043365,-502.50607817,0.00020785,2]
[337306273,1725591043375,-504.27182788,0.00020785,2]
[337306274,1725591043385,-506.77897216,0.00020785,2]
[337306275,1725591043396,-500.0,0.00020785,2]
[337306276,1725591043406,-627.82,0.00020785,2]
[337306277,1725591043416,-509.60917946,0.00020785,2]
[337306278,1725591043427,-151.0,0.00020785,2]
[337306279,1725591043436,-500.0,0.00020792,2]
[337306280,1725591043446,-500.0,0.00020794,2]
[337306281,1725591043455,-370.97468663,0.00020796,2]
[337306282,1725591043465,-620.62,0.000208,2]
[337306283,1725591043475,-500.0,0.00020849,2]
[337306284,1725591043485,-16866.67,0.00020849,2]
[337306285,1725591043495,-500.0,0.00020849,2]
[337306286,1725591043506,-500.0,0.00020849,2]
[337306287,1725591043518,-1353.23,0.00020849,2]
[337306288,1725591043529,-2996.25,0.00020849,2]
[337306289,1725591043539,-500.0,0.00020849,2]
[337306290,1725591043549,-500.0,0.00020849,2]
[337306291,1725591043559,-829.44195456,0.0002089,2]
[337306292,1725591043569,-159.236179,0.00020934,2]
[337306293,1725591043578,-2232.8,0.00020948,2]
[337306294,1725591043588,-11811.28,0.00020948,2]
[337306295,1725591043597,-1396.21,0.00020948,2]
[337306296,1725591043609,-500.0,0.00020948,2]
[337306297,1725591043620,-500.0,0.00020948,2]
[337306298,1725591043629,-3107.3,0.00020948,2]
[337306299,1725591043639,-3615.0,0.00020948,2]
[337306300,1725591043648,-570.36,0.00020948,2]
[337306301,1725591043658,-422.4998611,0.00020949,2]
[337306302,1725591043667,-2545.18,0.00020949,2]
[337306303,1725591043677,-1442.33,0.00020949,2]
[337306304,1725591043688,-200.0,0.00020949,2]
[337306305,1725591043697,-2328.53,0.00020949,2]
[337306306,1725591043707,-500.0,0.00020949,2]
[337306307,1725591043716,-1190.63,0.00020949,2]
[337306308,1725591043726,-500.0,0.00020949,2]
[337306309,1725591043736,-506.90326031,0.00020949,2]
[337306310,1725591043747,-1625.32,0.00020949,2]
[337306311,1725591043757,-500.0,0.00020949,2]
[337306312,1725591043769,-1240.69,0.00020949,2]
[337306313,1725591043780,-504.42989638,0.00020949,2]
[337306314,1725591043791,-500.0,0.00020949,2]
[337306315,1725591043800,-500.0,0.00020949,2]
[337306316,1725591043810,-4594.03,0.00020949,2]
[337306317,1725591043820,-500.0,0.00020949,2]
[337306318,1725591043838,-215.40694777,0.00020949,2]
[337306319,1725591043848,-500.0,0.00020949,2]
[337306320,1725591043857,-500.0,0.00020949,2]
[337306321,1725591043867,-500.0,0.00020949,2]
[337306322,1725591043876,-500.0,0.00020949,2]
[337306323,1725591043886,-1506.42,0.00020949,2]
[337306324,1725591043895,-423.02408971,0.00020949,2]
[337306325,1725591043904,-500.0,0.00020949,2]
[337306326,1725591043913,-559.91183618,0.00020949,2]
[337306327,1725591043922,-506.94868008,0.00020958,2]
[337306328,1725591043932,-2517.75,0.00020958,2]
[337306329,1725591043942,-1828.8,0.00020958,2]
[337306330,1725591043952,-507.43908942,0.00020958,2]
[337306331,1725591043961,-11734.36,0.00020958,2]
[337306332,1725591043970,-1462.77,0.00020958,2]
[337306333,1725591043980,-1936.47,0.00020958,2]
[337306334,1725591043989,-3064.32,0.00020958,2]
[337306335,1725591043998,-500.0,0.00020958,2]
[337306336,1725591044008,-500.0,0.00020958,2]
[337306337,1725591044017,-500.0,0.00020958,2]
[337306338,1725591044026,-2094.93,0.00020958,2]
[337306339,1725591044035,-1657.61,0.00020958,2]
[337306340,1725591044045,-1776.78,0.00020958,2]
[337306342,1725591044054,-500.0,0.00020958,2]
[337306343,1725591044064,-500.0,0.00020958,2]
[337306344,1725591044073,-500.0,0.00020958,2]
[337306345,1725591044085,-2017.59,0.00020958,2]
[337306346,1725591044094,-500.0,0.00020958,2]
[337306347,1725591044103,-11121.47,0.00020958,2]
[337306348,1725591044113,-500.0,0.00020959,2]
[337306349,1725591044122,-227.08039559,0.00020959,2]
[337306350,1725591044131,-526.75662074,0.00020959,2]
[337306351,1725591044141,-538.54767862,0.00020959,2]
[337306352,1725591044150,-513.85887518,0.00020959,2]
[337306353,1725591044159,-509.6930626,0.00020959,2]
[337306354,1725591044168,-500.0,0.00020959,2]
[337306355,1725591044177,-511.12683032,0.00020959,2]
[337306356,1725591044186,-500.0,0.00020959,2]
[337306357,1725591044196,-500.0,0.00020959,2]
[337306358,1725591044205,-503.68613791,0.00020959,2]
[337306359,1725591044214,-500.0,0.00020959,2]
[337306360,1725591044224,-502.94083854,0.00020959,2]
[337306361,1725591044235,-515.60742098,0.00020959,2]
[337306362,1725591044244,-512.34418902,0.00020959,2]
[337306363,1725591044253,-508.29021381,0.00020959,2]
[337306364,1725591044262,-500.0,0.00020959,2]
[337306365,1725591044271,-508.18060921,0.00020959,2]
[337306366,1725591044280,-507.92888256,0.00020959,2]
[337306367,1725591044290,-885.53,0.00020959,2]
[337306368,1725591044299,-504.44481954,0.00020959,2]
[337306369,1725591044311,-529.37795695,0.00020959,2]
[337306370,1725591044323,-579.68,0.00020959,2]
[337306371,1725591044334,-210.53114992,0.00020959,2]
[337306372,1725591044345,-506.18865764,0.00020959,2]
[337306373,1725591044356,-151.0,0.00020959,2]
[337306374,1725591044365,-151.0,0.00020959,2]
[337306375,1725591044375,-511.22513631,0.00020959,2]
[337306376,1725591044385,-500.0,0.00020959,2]
[337306377,1725591044394,-151.0,0.00020959,2]
[337306378,1725591044404,-500.0,0.00020959,2]
[337306379,1725591044415,-180.06849481,0.00020959,2]
[337306380,1725591044426,-1123.81,0.00020959,2]
[337306381,1725591044438,-1420.48,0.00020959,2]
[337306382,1725591044450,-1875.83,0.00020959,2]
[337306383,1725591044460,-500.0,0.00020959,2]
[337306384,1725591044469,-271.627051,0.00020959,2]
[337306385,1725591044479,-151.0,0.00020959,2]
[337306386,1725591044488,-151.0,0.00020959,2]
[337306387,1725591044497,-500.0,0.00020959,2]
[337306388,1725591044507,-151.0,0.00020959,2]
[337306389,1725591044516,-1163.84,0.00020959,2]
[337306390,1725591044524,-500.0,0.00020959,2]
[337306391,1725591044534,-151.0,0.00020959,2]
[337306392,1725591044543,-500.0,0.00020959,2]
[337306393,1725591044552,-151.0,0.00020959,2]
[337306394,1725591044561,-500.0,0.00020959,2]
[337306395,1725591044571,-12881.03,0.00020959,2]
[337306396,1725591044580,-500.0,0.00020959,2]
[337306398,1725591044591,-500.0,0.00020959,2]
[337306400,1725591044601,-500.0,0.00020959,2]
[337306401,1725591044613,-151.0,0.00020959,2]
[337306402,1725591044622,-500.0,0.00020959,2]
[337306403,1725591044631,-835.88,0.00020959,2]
[337306404,1725591044641,-233.166546,0.00020959,2]
[337306405,1725591044652,-500.0,0.00020959,2]
[337306406,1725591044661,-1344.14,0.00020959,2]
[337306407,1725591044670,-2865.79,0.00020959,2]
[337306408,1725591044680,-151.0,0.00020959,2]
[337306409,1725591044691,-28071.32,0.00020959,2]
[337306410,1725591044701,-500.0,0.00020959,2]
[337306411,1725591044711,-500.0,0.00020959,2]
[337306412,1725591044722,-500.0,0.00020959,2]
[337306413,1725591044731,-874.799586,0.00020959,2]
[337306414,1725591044741,-874.799586,0.00020959,2]
[337306415,1725591044752,-1767.32,0.00020959,2]
[337306416,1725591044762,-500.0,0.00020959,2]
[337306417,1725591044771,-500.0,0.00020959,2]
[337306418,1725591044781,-500.0,0.00020959,2]
[337306419,1725591044790,-500.0,0.00020959,2]
[337306420,1725591044799,-259.70915,0.00020959,2]
[337306421,1725591044808,-259.70915,0.00020959,2]
[337306422,1725591044816,-500.0,0.00020959,2]
[337306423,1725591044827,-166.586557,0.00020959,2]
[337306424,1725591044836,-166.586557,0.00020959,2]
[337306425,1725591044846,-1030.23,0.00020959,2]
[337306426,1725591044855,-151.47660012,0.00020959,2]
[337306427,1725591044865,-862.98,0.00020959,2]
[337306428,1725591044874,-151.0,0.00020959,2]
[337306429,1725591044883,-990.99,0.00020959,2]
[337306430,1725591044892,-1954.96,0.00020959,2]
[337306431,1725591044901,-500.0,0.00020959,2]
[337306432,1725591044911,-500.0,0.00020973,2]
[337306433,1725591044920,-245.722621,0.00020986,2]
[337306434,1725591044929,-500.0,0.00021057,2]
[337306435,1725591045032,-183.81986023,0.00021057,2]
[337306436,1725591045042,-500.0,0.00021059,2]
[337306437,1725591045051,-507.78060071,0.00021059,2]
[337306438,1725591045061,-500.0,0.00021059,2]
[337306439,1725591045070,-500.0,0.00021059,2]
[337306440,1725591045080,-500.0,0.00021059,2]
[337306441,1725591045089,-500.0,0.00021059,2]
[337306442,1725591045099,-500.0,0.00021059,2]
[337306443,1725591045108,-500.0,0.00021059,2]
[337306444,1725591045118,-206.05156509,0.00021059,2]
[337306446,1725591045128,-500.0,0.00021059,2]
[337306447,1725591045139,-500.0,0.00021059,2]
[337306448,1725591045149,-508.80831198,0.00021059,2]
[337306449,1725591045158,-500.0,0.00021059,2]
[337306450,1725591045167,-500.0,0.00021059,2]
[337306451,1725591045176,-500.0,0.00021059,2]
[337306452,1725591045186,-627.67736723,0.00021059,2]
[337306453,1725591045195,-500.0,0.00021059,2]
[337306454,1725591045205,-627.82,0.00021059,2]
[337306455,1725591045214,-1377.691694,0.000211,2]
[337306456,1725591045223,-500.0,0.00021123,2]
[337306457,1725591045232,-16866.67,0.00021123,2]
[337306458,1725591045242,-500.0,0.00021123,2]
[337306459,1725591045251,-500.0,0.00021123,2]
[337306460,1725591045260,-1353.23,0.00021123,2]
[337306461,1725591045268,-2996.25,0.00021123,2]
[337306462,1725591045278,-500.0,0.00021123,2]
[337306463,1725591045287,-500.0,0.00021123,2]
[337306464,1725591045297,-401.33349491,0.00021221,2]
[337306465,1725591045306,-2232.8,0.00021222,2]
[337306466,1725591045316,-11811.28,0.00021222,2]
[337306467,1725591045325,-1396.21,0.00021222,2]
[337306468,1725591045335,-500.0,0.00021222,2]
[337306469,1725591045345,-500.0,0.00021222,2]
[337306470,1725591045354,-3107.3,0.00021222,2]
[337306471,1725591045364,-3615.0,0.00021222,2]
[337306472,1725591045373,-570.36,0.00021222,2]
[337306473,1725591045382,-2545.18,0.00021223,2]
[337306474,1725591045392,-1442.33,0.00021223,2]
[337306475,1725591045402,-200.0,0.00021223,2]
[337306476,1725591045412,-2328.53,0.00021223,2]
[337306477,1725591045422,-615.67709392,0.00021223,2]
[337306478,1725591045434,-1190.63,0.00021223,2]
[337306479,1725591045445,-500.0,0.00021223,2]
[337306480,1725591045454,-1625.32,0.00021223,2]
[337306481,1725591045464,-507.39852021,0.00021223,2]
[337306482,1725591045474,-1240.69,0.00021223,2]
[337306483,1725591045484,-500.0,0.00021223,2]
[337306484,1725591045493,-500.0,0.00021223,2]
[337306485,1725591045502,-4594.03,0.00021223,2]
[337306486,1725591045512,-500.0,0.00021223,2]
[337306487,1725591045521,-500.0,0.00021223,2]
[337306488,1725591045531,-500.0,0.00021223,2]
[337306489,1725591045541,-500.0,0.00021223,2]
[337306490,1725591045552,-500.0,0.00021223,2]
[337306491,1725591045562,-1506.42,0.00021223,2]
[337306492,1725591045572,-500.0,0.00021223,2]
[337306493,1725591045583,-2517.75,0.00021232,2]
[337306494,1725591045594,-1828.8,0.00021232,2]
[337306495,1725591045604,-11734.36,0.00021232,2]
[337306496,1725591045616,-1462.77,0.00021232,2]
[337306497,1725591045627,-1936.47,0.00021232,2]
[337306498,1725591045637,-3064.32,0.00021232,2]
[337306499,1725591045647,-500.0,0.00021232,2]
[337306500,1725591045656,-500.0,0.00021232,2]
[337306501,1725591045666,-500.0,0.00021232,2]
[337306502,1725591045676,-2094.93,0.00021232,2]
[337306503,1725591045687,-1657.61,0.00021232,2]
[337306504,1725591045697,-1776.78,0.00021232,2]
[337306505,1725591045707,-500.0,0.00021232,2]
[337306506,1725591045717,-500.0,0.00021232,2]
[337306507,1725591045727,-500.0,0.00021232,2]
[337306508,1725591045737,-2017.59,0.00021232,2]
[337306509,1725591045746,-500.0,0.00021232,2]
[337306510,1725591045756,-11121.47,0.00021232,2]
[337306511,1725591045766,-500.0,0.00021233,2]
[337306512,1725591045776,-169.74203955,0.00021233,2]
[337306513,1725591045785,-500.0,0.00021233,2]
[337306514,1725591045796,-202.37148091,0.00021233,2]
[337306515,1725591045806,-256.38892689,0.00021233,2]
[337306516,1725591045817,-634.3813728,0.00021233,2]
[337306517,1725591045830,-885.53,0.00021233,2]
[337306518,1725591045840,-579.68,0.00021233,2]
[337306520,1725591045849,-500.0,0.00021233,2]
[337306522,1725591045859,-500.0,0.00021233,2]
[337306524,1725591045869,-1123.81,0.00021233,2]
[337306526,1725591045879,-1420.48,0.00021233,2]
[337306528,1725591045889,-1875.83,0.00021233,2]
[337306529,1725591045899,-535.22455543,0.00021233,2]
[337306530,1725591045908,-500.0,0.00021233,2]
[337306531,1725591045918,-1163.84,0.00021233,2]
[337306532,1725591045928,-500.0,0.00021233,2]
[337306533,1725591045938,-500.0,0.00021233,2]
[337306534,1725591045949,-500.0,0.00021233,2]
[337306535,1725591045958,-12881.03,0.00021233,2]
[337306536,1725591045968,-500.0,0.00021233,2]
[337306537,1725591045977,-500.0,0.00021233,2]
[337306538,1725591045987,-500.0,0.00021233,2]
[337306539,1725591045996,-500.0,0.00021233,2]
[337306540,1725591046005,-835.88,0.00021233,2]
[337306541,1725591046015,-500.0,0.00021233,2]
[337306542,1725591046024,-1344.14,0.00021233,2]
[337306543,1725591046034,-2865.79,0.00021233,2]
[337306544,1725591046043,-28071.32,0.00021233,2]
[337306546,1725591046053,-500.0,0.00021233,2]
[337306547,1725591046066,-500.0,0.00021233,2]
[337306548,1725591046076,-500.0,0.00021233,2]
[337306549,1725591046085,-1767.32,0.00021233,2]
[337306550,1725591046095,-500.0,0.00021233,2]
[337306551,1725591046104,-500.0,0.00021233,2]
[337306552,1725591046114,-500.0,0.00021233,2]
[337306553,1725591046123,-500.0,0.00021233,2]
[337306554,1725591046134,-259.70915,0.00021233,2]
[337306555,1725591046146,-259.70915,0.00021233,2]
[337306556,1725591046158,-500.0,0.00021233,2]
[337306557,1725591046168,-166.586557,0.00021233,2]
[337306558,1725591046180,-166.586557,0.00021233,2]
[337306559,1725591046191,-1030.23,0.00021233,2]
[337306560,1725591046202,-862.98,0.00021233,2]
[337306561,1725591046211,-151.0,0.00021233,2]
[337306562,1725591046222,-990.99,0.00021233,2]
[337306563,1725591046233,-1954.96,0.00021233,2]
[337306564,1725591046244,-500.0,0.00021233,2]
[337306565,1725591046255,-500.0,0.00021333,2]
[337306566,1725591046264,-500.0,0.00021333,2]
[337306567,1725591046274,-500.0,0.00021333,2]
[337306568,1725591046283,-342.02395153,0.00021333,2]
[337306569,1725591046292,-500.0,0.00021333,2]
[337306570,1725591046302,-500.0,0.00021333,2]
[337306571,1725591046313,-281.09002643,0.00021333,2]
[337306572,1725591046324,-500.0,0.00021333,2]
[337306573,1725591046335,-248.71,0.00021333,2]
[337306574,1725591046345,-500.0,0.00021333,2]
[337306575,1725591046355,-500.0,0.00021333,2]
[337306576,1725591046364,-500.0,0.00021333,2]
[337306577,1725591046374,-500.0,0.00021333,2]
[337306578,1725591046383,-627.82,0.00021333,2]
[337306579,1725591046393,-500.0,0.00021397,2]
[337306580,1725591046402,-16866.67,0.00021397,2]
[337306581,1725591046412,-500.0,0.00021397,2]
[337306582,1725591046422,-500.0,0.00021397,2]
[337306583,1725591046433,-1353.23,0.00021397,2]
[337306584,1725591046445,-2996.25,0.00021397,2]
[337306585,1725591046455,-500.0,0.00021397,2]
[337306586,1725591046465,-500.0,0.00021397,2]
[337306587,1725591046474,-2232.8,0.00021496,2]
[337306589,1725591046484,-11811.28,0.00021496,2]
[337306590,1725591046493,-1396.21,0.00021496,2]
[337306591,1725591046502,-500.0,0.00021496,2]
[337306592,1725591046511,-500.0,0.00021496,2]
[337306593,1725591046523,-3107.3,0.00021496,2]
[337306594,1725591046534,-3615.0,0.00021496,2]
[337306595,1725591046544,-570.36,0.00021496,2]
[337306596,1725591046554,-2545.18,0.00021497,2]
[337306597,1725591046564,-1442.33,0.00021497,2]
[337306598,1725591046573,-252.05661798,0.00021497,2]
[337306599,1725591046583,-2328.53,0.00021497,2]
[337306600,1725591046592,-151.0,0.00021497,2]
[337306601,1725591046602,-151.0,0.00021497,2]
[337306602,1725591046616,-1190.63,0.00021497,2]
[337306603,1725591046627,-500.0,0.00021497,2]
[337306604,1725591046638,-1625.32,0.00021497,2]
[337306605,1725591046650,-874.799586,0.00021497,2]
[337306606,1725591046660,-874.799586,0.00021497,2]
[337306607,1725591046670,-1240.69,0.00021497,2]
[337306608,1725591046679,-500.0,0.00021497,2]
[337306609,1725591046689,-500.0,0.00021497,2]
[337306610,1725591046700,-4594.03,0.00021497,2]
[337306611,1725591046711,-500.0,0.00021497,2]
[337306612,1725591046720,-500.0,0.00021497,2]
[337306613,1725591046732,-344.59120969,0.00021497,2]
[337306614,1725591046744,-500.0,0.00021497,2]
[337306615,1725591046754,-500.0,0.00021497,2]
[337306616,1725591046763,-1506.42,0.00021497,2]
[337306617,1725591046773,-500.0,0.00021497,2]
[337306618,1725591046782,-2517.75,0.00021506,2]
[337306619,1725591046791,-151.0,0.00021506,2]
[337306620,1725591046801,-151.0,0.00021506,2]
[337306621,1725591046810,-1828.8,0.00021506,2]
[337306622,1725591046819,-151.0,0.00021506,2]
[337306623,1725591046829,-11734.36,0.00021506,2]
[337306624,1725591046839,-151.0,0.00021506,2]
[337306625,1725591046849,-151.0,0.00021506,2]
[337306626,1725591046858,-1462.77,0.00021506,2]
[337306627,1725591046867,-1936.47,0.00021506,2]
[337306628,1725591046877,-3064.32,0.00021506,2]
[337306629,1725591046886,-500.0,0.00021506,2]
[337306630,1725591046895,-500.0,0.00021506,2]
[337306631,1725591046904,-500.0,0.00021506,2]
[337306632,1725591046914,-2094.93,0.00021506,2]
[337306633,1725591046923,-1657.61,0.00021506,2]
[337306634,1725591046935,-1776.78,0.00021506,2]
[337306635,1725591046945,-500.0,0.00021506,2]
[337306636,1725591046956,-500.0,0.00021506,2]
[337306637,1725591046966,-229.14104728,0.00021506,2]
[337306638,1725591046976,-2017.59,0.00021506,2]
[337306639,1725591046987,-500.0,0.00021506,2]
[337306640,1725591046997,-11121.47,0.00021506,2]
[337306641,1725591047008,-500.0,0.00021507,2]
[337306642,1725591047018,-500.0,0.00021507,2]
[337306643,1725591047029,-885.53,0.00021507,2]
[337306644,1725591047038,-579.68,0.00021507,2]
[337306645,1725591047049,-500.0,0.00021507,2]
[337306646,1725591047060,-500.0,0.00021507,2]
[337306647,1725591047069,-1123.81,0.00021507,2]
[337306648,1725591047079,-1420.48,0.00021507,2]
[337306649,1725591047088,-1875.83,0.00021507,2]
[337306650,1725591047097,-500.0,0.00021507,2]
[337306651,1725591047107,-1163.84,0.00021507,2]
[337306652,1725591047116,-500.0,0.00021507,2]
[337306653,1725591047125,-500.0,0.00021507,2]
[337306654,1725591047134,-500.0,0.00021507,2]
[337306655,1725591047144,-12881.03,0.00021507,2]
[337306656,1725591047153,-500.0,0.00021507,2]
[337306657,1725591047162,-500.0,0.00021507,2]
[337306658,1725591047171,-500.0,0.00021507,2]
[337306659,1725591047180,-835.88,0.00021507,2]
[337306660,1725591047190,-500.0,0.00021507,2]
[337306661,1725591047199,-500.0,0.00021507,2]
[337306662,1725591047209,-1344.14,0.00021507,2]
[337306663,1725591047218,-2865.79,0.00021507,2]
[337306664,1725591047227,-28071.32,0.00021507,2]
[337306665,1725591047237,-213.76017342,0.00021507,2]
[337306666,1725591047246,-500.0,0.00021507,2]
[337306667,1725591047255,-500.0,0.00021507,2]
[337306668,1725591047264,-1767.32,0.00021507,2]
[337306669,1725591047273,-500.0,0.00021507,2]
[337306670,1725591047283,-500.0,0.00021507,2]
[337306671,1725591047292,-500.0,0.00021507,2]
[337306672,1725591047301,-500.0,0.00021507,2]
[337306673,1725591047310,-259.70915,0.00021507,2]
[337306674,1725591047319,-259.70915,0.00021507,2]
[337306675,1725591047329,-179.49510328,0.00021507,2]
[337306676,1725591047341,-166.586557,0.00021507,2]
[337306677,1725591047350,-166.586557,0.00021507,2]
[337306678,1725591047358,-1030.23,0.00021507,2]
[337306679,1725591047368,-862.98,0.00021507,2]
[337306680,1725591047378,-990.99,0.00021507,2]
[337306681,1725591047387,-1954.96,0.00021507,2]
[337306682,1725591047397,-500.0,0.00021507,2]
[337306683,1725591047406,-1000.0,0.00021521,2]
[337306684,1725591047415,-382.65868822,0.00021607,2]
[337306685,1725591047424,-500.0,0.00021607,2]
[337306686,1725591047433,-500.0,0.00021607,2]
[337306687,1725591047442,-553.64941044,0.00021607,2]
[337306688,1725591047450,-500.0,0.00021607,2]
[337306689,1725591047548,-500.0,0.00021607,2]
[337306690,1725591047557,-500.0,0.00021607,2]
[337306691,1725591047568,-500.0,0.00021607,2]
[337306692,1725591047577,-162.97456316,0.00021607,2]
[337306693,1725591047586,-627.82,0.00021607,2]
[337306694,1725591047595,-500.0,0.00021671,2]
[337306695,1725591047606,-16866.67,0.00021671,2]
[337306696,1725591047616,-500.0,0.00021671,2]
[337306697,1725591047626,-500.0,0.00021671,2]
[337306698,1725591047636,-1353.23,0.00021671,2]
[337306699,1725591047646,-2996.25,0.00021671,2]
[337306700,1725591047654,-500.0,0.00021671,2]
[337306701,1725591047664,-500.0,0.00021671,2]
[337306702,1725591047673,-2232.8,0.0002177,2]
[337306703,1725591047683,-11811.28,0.0002177,2]
[337306704,1725591047692,-1396.21,0.0002177,2]
[337306705,1725591047702,-500.0,0.0002177,2]
[337306706,1725591047711,-500.0,0.0002177,2]
[337306707,1725591047720,-3107.3,0.0002177,2]
[337306708,1725591047730,-3615.0,0.0002177,2]
[337306709,1725591047739,-570.36,0.0002177,2]
[337306710,1725591047748,-2545.18,0.00021771,2]
[337306711,1725591047757,-1442.33,0.00021771,2]
[337306712,1725591047767,-2328.53,0.00021771,2]
[337306713,1725591047776,-1190.63,0.00021771,2]
[337306714,1725591047786,-500.0,0.00021771,2]
[337306715,1725591047795,-1625.32,0.00021771,2]
[337306716,1725591047804,-1240.69,0.00021771,2]
[337306717,1725591047813,-500.0,0.00021771,2]
[337306718,1725591047823,-500.0,0.00021771,2]
[337306719,1725591047832,-4594.03,0.00021771,2]
[337306720,1725591047841,-506.39592376,0.00021771,2]
[337306721,1725591047851,-500.0,0.00021771,2]
[337306722,1725591047860,-577.04948727,0.00021771,2]
[337306723,1725591047870,-271.31237687,0.00021771,2]
[337306724,1725591047880,-1506.42,0.00021771,2]
[337306725,1725591047889,-66335.26519643,0.0002178,15]
[337306726,1725591047898,-2517.75,0.0002178,2]
[337306727,1725591047906,-1828.8,0.0002178,2]
[337306728,1725591047915,-11734.36,0.0002178,2]
[337306729,1725591047924,-80.17996863,0.0002178,2]
[337306730,1725591048070,-1382.59003137,0.0002178,2]
[337306731,1725591048080,-1936.47,0.0002178,2]
[337306732,1725591048090,-1273.97180358,0.0002178,2]
[337306733,1725591048101,-1790.34819642,0.0002178,2]
[337306734,1725591048110,-500.0,0.0002178,2]
[337306735,1725591048119,-500.0,0.0002178,2]
[337306736,1725591048128,-116.42301308,0.0002178,2]